Cogmind - Beta 17 @@@ ROGUE MODE // 2026.06.29 @ 17:50:31 Player: Pitt Result: Destroyed by 4U-PI3(R) with Subdweller Machine Gun Performance ------------- Evolutions (0) 0 Regions Visited (3) 600 Robots Destroyed (9) 45 Value Destroyed (123) 123 Prototype IDs (0) 0 Alien Tech Used (0) 0 Bonus (0) 0 TOTAL SCORE: 768 Bonus ------- None Cogmind --------- Core Integrity 0/250 Matter 122/300 Energy 100/100 System Corruption 0% Temperature Cool (0) Movement Core (50) Location -10/Subcaves Parts ------- > --- POWER (1) -------- (None) > --- PROPULSION (2) --- (None) > --- UTILITY (2) ------ (None) > --- WEAPON (2) ------- (None) > --- INVENTORY (5) ---- Small Storage Unit Structural Scanner Mining Laser Peak State ------------ > --- POWER ------------ Light Ion Engine > --- PROPULSION ------- Wheel Wheel > --- UTILITY ---------- Improved Terrain Scanner Seismic Detector > --- WEAPON ----------- Assault Rifle Light Assault Rifle > --- INVENTORY -------- Ion Engine Compact Wheel Small Storage Unit [Rating: 9] Favorites ----------- Power Light Ion Engine Engine Light Ion Engine Propulsion Wheel Wheel Wheel Utility Seismic Detector Device Seismic Detector Weapon Assault Rifle Ballistic Gun Assault Rifle Launcher Grenade Launcher Special Weapon Mining Laser Build | -11 -10 -10 -10 ------- Run | Yrd Mat Min Sub Slots Evolved . | . . . . Power . | . . . . Propulsion . | . . . . Utility . | . . . . Weapon . | . . . . Parts Attached 13 | 9 2 2 . Power 2 | 2 . . . Engine 2 | 2 . . . Core . | . . . . Reactor . | . . . . Propulsion 3 | 3 . . . Treads . | . . . . Leg . | . . . . Wheel 3 | 3 . . . Hover . | . . . . Flight . | . . . . Utility 3 | 2 . 1 . Device 3 | 2 . 1 . Storage . | . . . . Processor . | . . . . Hackware . | . . . . Protection . | . . . . Artifact . | . . . . Weapon 5 | 2 2 1 . Energy Gun . | . . . . Energy Cannon . | . . . . Ballistic Gun 2 | 2 . . . Ballistic Cannon . | . . . . Launcher 1 | . . 1 . Special Weapon 2 | . 2 . . Impact Weapon . | . . . . Slashing Weapon . | . . . . Piercing Weapon . | . . . . Special Melee Weapon . | . . . . Unidentified Prototypes . | . . . . Parts Lost 9 | . . . 9 Power 2 | . . . 2 Propulsion 2 | . . . 2 Utility 2 | . . . 2 Weapon 3 | . . . 3 Highest Loss Streak 9 | . . . 9 To Critical Strikes . | . . . . Average Backups 4 | 1 3 5 4 Power . | . 1 1 . Propulsion . | . . . . Utility 1 | . 1 2 2 Weapon 1 | . 1 2 1 Tool/Special . | . . . . Unused Backups 1 | . . . 1 Power . | . . . . Propulsion . | . . . . Utility 1 | . . . 1 Weapon . | . . . . Tool/Special . | . . . . Average Slot Usage (%) 97 | . 100 100 81 Engine 13 | . 14 14 10 Wheel 27 | . 28 28 24 Device 26 | . 28 28 19 Ballistic Gun 23 | . 23 25 14 Launcher 2 | . . 2 10 Special Weapon 1 | . 4 . . Peak Build Rating 9 | 9 9 9 9 Average Rating 8 | 5 9 8 7 On Entrance 6 | . 9 9 9 Avg Prop Armor Cover (%) . | . . . . Naked Turns 4 | . . . 4 Heaviest Build 10 | 8 8 10 10 Greatest Support 26 | 26 20 20 20 Greatest Overweight (x) . | . . . . Average Overweight (x) . | . . . . Largest Inventory Capacity 5 | 5 5 5 5 Average Capacity 5 | 5 5 5 5 Most Carried 5 | 4 5 5 5 Average Carried 4 | 2 3 5 4 Final Capacity 5 | 5 5 5 5 Final Carried 5 | 3 5 5 3 Class Distribution -------------------- 94% | Scavenger-Mutant 5% | Mutant Dominant Class ---------------- Scavenger-Mutant | -10/Materials Scavenger-Mutant | -10/Mines Scavenger-Mutant | -10/Subcaves Resources | -11 -10 -10 -10 ----------- Run | Yrd Mat Min Sub Matter Collected 426 | 326 100 . . Remotely . | . . . . Salvage Created 301 | 129 100 . 72 Parts 27 | 15 10 . 2 Haulers Intercepted . | . . . . Recyclers Shooed 4 | 1 3 . . Parts Field Recycled . | . . . . Retrieved Matter . | . . . . Parts Self-Destructed 8 | . . . 8 Prevented . | . . . . Parts Restored . | . . . . Kills | -11 -10 -10 -10 ------- Run | Yrd Mat Min Sub Combat Hostiles Destroyed 2 | . . . 2 Guns 1 | . . . 1 AOE 1 | . . . 1 Classes Destroyed 4 | 2 1 . 1 Builder 2 | . 2 . . Tunneler 3 | 3 . . . Recycler 2 | 1 1 . . Subdweller 2 | . . . 2 Best Kill Streak 2 | 2 2 . 2 Combat Bots Only 2 | . . . 2 Max Kills in Single Turn 1 | 1 1 . 1 Gunslinging . | . . . . Exploded 1 | . . . 1 Melee . | . . . . Uniques/NPCs Destroyed . | . . . . Combat | -11 -10 -10 -10 -------- Run | Yrd Mat Min Sub Hostile Shots Fired 51 | . 1 . 50 Missed 14 | . . . 14 Hits 37 | . 1 . 36 Projectile 37 | . 1 . 36 Critical Strikes 2 | . . . 2 Damage Taken 766 | . 10 5 751 Core 263 | . . . 263 Absorbed by Shields . | . . . . Core Remaining (%) 100 | 100 . . . Volleys Fired 73 | 18 29 3 23 Largest 2 | 2 2 1 2 Hottest 100 | 40 100 30 40 Shots Fired 98 | 24 38 3 33 Gun 76 | 24 24 . 28 Cannon . | . . . . Launcher 8 | . . 3 5 Special 14 | . 14 . . Kinetic 76 | 24 24 . 28 Thermal 14 | . 14 . . Explosive 8 | . . 3 5 Electromagnetic . | . . . . Robot Hit Streak 15 | 4 9 . 15 Robot Miss Streak 3 | 3 2 . 1 Penetration Max . | . . . . Secondary Targets . | . . . . Shots Hit Robots 55 | 12 16 . 27 Core Hits 19 | 6 7 . 6 Critical Kills . | . . . . Critical Parts Destroyed . | . . . . Critical Strikes 1 | . . . 1 Destroy 1 | . . . 1 Melee Attacks . | . . . . Impact . | . . . . Slashing . | . . . . Piercing . | . . . . Sneak Attacks . | . . . . Combat Hostiles . | . . . . Follow-up Attacks . | . . . . Damage Inflicted 764 | 109 195 . 460 Guns 524 | 109 193 . 222 Cannons . | . . . . Explosions 231 | . . . 231 Melee . | . . . . Ramming 7 | . . . 7 Kinetic 524 | 109 193 . 222 Thermal 2 | . 2 . . Explosive 231 | . . . 231 Electromagnetic . | . . . . Impact . | . . . . Slashing . | . . . . Piercing . | . . . . Highest Corruption . | . . . . Average Corruption . | . . . . Corruption Purged . | . . . . Corruption Blocked . | . . . . Overload Shots . | . . . . Overflow Damage . | . . . . Projectiles . | . . . . Explosions . | . . . . Melee . | . . . . Knockbacks . | . . . . Impact . | . . . . Kinetic . | . . . . Secondary . | . . . . Self-Inflicted Damage 36 | . . 5 31 Shots 3 | . . 1 2 Rammed 2 | . . . 2 Targets Rammed 2 | . . . 2 Kicked . | . . . . Crushed . | . . . . Highest Temperature 60 | . 60 . . Average Temperature 23 | . 23 . . Received Heat Transfer 60 | . . . 60 Siege Activations . | . . . . Martial Activations . | . . . . Shielding Activations . | . . . . Robots Disrupted . | . . . . Combat Hostiles . | . . . . Robots Corrupted . | . . . . Combat Hostiles . | . . . . Parts Fried . | . . . . Impact Corruptions . | . . . . Robots Melted . | . . . . Combat Hostiles . | . . . . Parts Melted 2 | . . . 2 Heat Transferred 25 | . 25 . . Parts Sabotaged . | . . . . Parts Stolen . | . . . . Parts Stripped . | . . . . Power Chain Reactions . | . . . . Alert | -11 -10 -10 -10 ------- Run | Yrd Mat Min Sub Maximum Alert Level . | . . . . Low Security (%) 100 | 100 100 100 . Level 1 . | . . . . Level 2 . | . . . . Level 3 . | . . . . Level 4 . | . . . . Level 5 . | . . . . High Security . | . . . . Max Security . | . . . . Peak Influence 12 | 10 5 12 . Initial . | . . . . Average . | 1 . . . Influence Increases 60 | 20 28 12 . Destroy 0b10 Robot/NC 35 | 20 15 . . Successful Hack 4 | . 4 . . Destroy Structure 21 | . 9 12 . Influence Decreases 60 | 20 28 12 . Time Decay 60 | 20 28 12 . Squads Dispatched 1 | . 1 . . Investigation . | . . . . Extermination . | . . . . Reinforcement 1 | . 1 . . Assault . | . . . . Garrison . | . . . . Intercept . | . . . . Searches Triggered . | . . . . Construction Impeded . | . . . . Haulers Reinforced . | . . . . Active Scanning Responses . | . . . . Cargo Convoy Interrupts . | . . . . Stealth | -11 -10 -10 -10 --------- Run | Yrd Mat Min Sub Distress Signals . | . . . . Communications Jammed . | . . . . Distress Signals . | . . . . Times Spotted 10 | . 5 . 5 Peak Tracking Total 3 | . 3 . 3 Tactical Retreats . | . . . . Traps | -11 -10 -10 -10 ------- Run | Yrd Mat Min Sub Traps Triggered . | . . . . Indirectly . | . . . . Trap Hack Attempts . | . . . . Triggered . | . . . . Disarmed . | . . . . Reprogrammed . | . . . . Reused . | . . . . Traps Extracted . | . . . . Installed . | . . . . Triggered . | . . . . Machines | -11 -10 -10 -10 ---------- Run | Yrd Mat Min Sub Machines Disabled . | . . . . Max in Single Turn . | . . . . Machines Repaired . | . . . . Machines Dismantled . | . . . . Machines Sabotaged . | . . . . Overloaded Fab Kills . | . . . . Hacking | -11 -10 -10 -10 --------- Run | Yrd Mat Min Sub Machines Accessed 3 | . 3 . . Terminals 3 | . 3 . . Fabricators . | . . . . Repair Stations . | . . . . Recycling Units . | . . . . Scanalyzers . | . . . . Garrison Access . | . . . . Total Hacks 6 | . 6 . . Successful 2 | . 2 . . Failed 4 | . 4 . . Catastrophic 2 | . 2 . . Database Lockouts . | . . . . Manual 2 | . 2 . . Terminals 6 | . 6 . . Fabricators . | . . . . Repair Stations . | . . . . Recycling Units . | . . . . Scanalyzers . | . . . . Garrison Access . | . . . . Terminal Hacks 2 | . 2 . . Locate Traps 1 | . 1 . . Recall Reinforcements 1 | . 1 . . Fabricator Hacks . | . . . . Repair Station Hacks . | . . . . Recycling Unit Hacks . | . . . . Scanalyzer . | . . . . Garrison Access Hacks . | . . . . Unauthorized Hacks . | . . . . Terminals . | . . . . Fabricators . | . . . . Repair Stations . | . . . . Recycling Units . | . . . . Scanalyzers . | . . . . Garrison Access . | . . . . Data Cores Recovered . | . . . . Used . | . . . . Hacking Detections 3 | . 3 . . Full Trace Events . | . . . . Feedback Events . | . . . . Feedback Blocked . | . . . . Robot Schematics Acquired . | . . . . Robots Built . | . . . . Authchips . | . . . . Time . | . . . . Total Robot Build Rating . | . . . . Part Schematics Acquired . | . . . . Parts Built . | . . . . Authchips . | . . . . Time . | . . . . Total Part Build Rating . | . . . . Part Studies Acquired . | . . . . Parts Repaired . | . . . . Time . | . . . . Parts Recycled . | . . . . Recycled Matter . | . . . . Retrieved Matter . | . . . . Retrieved Components . | . . . . Parts Scanalyzed . | . . . . Part Schematics Acquired . | . . . . Parts Damaged . | . . . . Bothacking | -11 -10 -10 -10 ------------ Run | Yrd Mat Min Sub Used RIF Installer . | . . . . Robots Hacked . | . . . . Non-combat . | . . . . Combat . | . . . . Robot Hacks Applied . | . . . . Relay Couplers Released . | . . . . Fabnet Peak Effective % . | . . . . Robots Rewired . | . . . . Allies Hacked . | . . . . Hacks Repelled . | . . . . Allies | -11 -10 -10 -10 -------- Run | Yrd Mat Min Sub Total Allies . | . . . . Largest Group . | . . . . Highest-Rated Group . | . . . . Highest-Rated Ally . | . . . . Total Orders . | . . . . Ally Attacks . | . . . . Total Damage . | . . . . Kills . | . . . . Allies Corrupted . | . . . . Allies Melted . | . . . . Intel | -11 -10 -10 -10 ------- Run | Yrd Mat Min Sub Active Infowar (turns) 1287 | 96 497 553 141 Terrain 1219 | 47 497 534 141 Structural 19 | . . 19 . Seismic 1255 | 96 497 553 109 Robot Analysis Total . | . . . . Derelict Logs Recovered 1 | . . 1 . Drone Launches . | . . . . Drone Recoveries . | . . . . Exploration | -11 -10 -10 -10 ------------- Run | Yrd Mat Min Sub Turns Passed 1385 | 156 497 553 179 Spaces Moved 418 | 122 141 59 96 Core 8 | 4 . . 4 Treads . | . . . . Legs . | . . . . Wheels 410 | 118 141 59 92 Hover . | . . . . Flight . | . . . . Fastest Speed 50 | 50 80 80 50 Average Speed 80 | 82 80 80 78 Slowest Speed 90 | 90 80 80 80 Overloaded Moves . | . . . . Propulsion Burnouts . | . . . . Robots Hopped . | . . . . Potential Cave-ins 2 | . . 2 . Cave-ins Triggered . | . . . . Exploration Rate (%) 15 | 4 24 23 10 Regions Visited 3 Branch Regions 2 Pre-discovered Areas 1 | . . 1 . Known Exits Taken . | . . . . Unknown Exits Taken 3 | 1 1 1 . Scrap Searched . | . . . . Spaces Dug 11 | . 11 . . Terrain Destroyed 64 | . 11 20 33 Melee . | . . . . Projectile 11 | . 11 . . AOE 53 | . . 20 33 Terrain Rammed . | . . . . Walls Destroyed . | . . . . Machines Disabled . | . . . . Actions | -11 -10 -10 -10 --------- Run | Yrd Mat Min Sub Total 1344 | 153 462 560 169 Wait 821 | . 280 496 45 Move 415 | 121 140 58 96 Hop . | . . . . Pick Up 4 | 2 2 . . Fast Attach 10 | 9 1 . . Attach 2 | . . . 2 Detach 3 | 2 1 . . Swap 12 | . 8 3 1 Drop 2 | 1 1 . . Fire 73 | 18 29 3 23 Melee . | . . . . Ram 2 | . . . 2 Kick . | . . . . Crush . | . . . . Escape Stasis . | . . . . Rewire . | . . . . Trap . | . . . . Miscellaneous . | . . . . Route ------- -11/Scrapyard -10/Materials -10/Mines -10/Subcaves History --------- Turn | Location | Event 3 | -11/Scrapyard | Discovered new exit (range 16) 157 | -11/Scrapyard | Entered Materials 310 | -10/Materials | Build established: Scavenger-Mutant 575 | -10/Materials | Discovered new exit (range 14) 654 | -10/Materials | Entered Mines 1197 | -10/Mines | Learned location of Recycling (-7) 1198 | -10/Mines | Discovered new exit (range 13) 1207 | -10/Mines | Entered Subcaves 1208 | -10/Subcaves | Approached by a straggling Scientist 1351 | -10/Subcaves | Ambushed by Subdweller buried in earth 1361 | -10/Subcaves | Core integrity fell below 50% 1385 | -10/Subcaves | Core integrity fell below 20% 1386 | -10/Subcaves | Destroyed by 4U-PI3(R) with Subdweller Machine Gun Last Messages --------------- 01328_ Lgt. Ion Engine destroyed. 01329_ NZ-2PI(R) suffers critical hit (Destroy). 01336_ Assault Rifle destroyed. 01338_ Wheel destroyed. 01338_ Sub. Laser melted. 01338_ Disposable Heat Sink melted. 01338_ NZ-2PI(R) destroyed. 01344_ Ion Engine destroyed. 01347_ ZI-8UC(R) affixes Scrap Shield Fragment to Scrap Shield. 01348_ Imp. Terrain Scanner destroyed. 01351_ ZI-8UC(R) destroyed. [Achievement: Do Not Disturb] 01352_ H4-E3B(R): "ARGHSUB!" 01353_ The unstable cave ceiling collapses. K4-4MO(c): "I think it's somewhere east of here" 01362_ Lgt. Assault Rifle destroyed. 01374_ Grenade Launcher destroyed. 01382_ Wheel destroyed. 01384_ Slammed into 4U-PI3(R). 01385_ Slammed into NK-DGB(R). Map ----- +----------------------------------------------------+ | ?????????????????????????????????????????????????? | | ?????????????????????????????????????????????????? | | ?????????????????????????????????????????????????? | | ?????????????????????????????????????????????????? | | ?????????????????????????????????????????????????? | | ?????????????????????????????????????????????????? | | ?????????????????????????????????????????????????? | | ?????????????????????????????????????????????????? | | ?????????????????????????????????????????????????? | | ?????????????????????#???????????????????????????? | | ?????????????????????????????????????????????????? | | #????????????????????????????????????????????????? | | #????#???????????????????????????????????????????? | | ##??????#????????????????????????????????????????? | | #??#???????#????????????????????????????????????? | | #????????????###????????????????????????????????? | | ?????????###### ##???????????????????????????????? | | #????###?# ####????????????????????????????? | | ?????# ### # #" #####????????????????????????? | | ?##?## " """##???????????????????????? | | ????# % " "" ##??????????????????????? | | ????## # & # "" ######???????????????????? | | #???## ## # " ## #???????????????????? | | ##### # # # ### ##???????????????????? | | ### ####" ## R## ###????????????????????? | | ### ##?#" R@##?????????????????????? | | #?#" # ### %R ##????????????????????? | | #?#" "#######?### ##???????????????????? | | #""""?##??????# %#???????????????????? | | ###""""???#?? #??????????????????? | | #?##""?????# # % #??????????????????? | | ## #??????????## #### #?????????????????? | | ### ##???????##?# ????#####?????????????????? | | ?# #?????????## ???????????????????????????? | | ?# ### ??????????# ????????????????????????????? | | ######??# ?????????##????????????????????????????? | | #???????? ??????????????????????????????????????? | | ?????????? ??????????????????????????????????????? | | ?????????? ?????????????????????????????????????? | | ?????????????????????????????????????????????????? | | ?????????????????????????????????????????????????? | | ??????????#??????????????????????????????????????? | | ?????????????????????????????????????????????????? | | ?????????????????????????????????????????????????? | | ?????????????????????????????????????????????????? | | ?????????????????????????????????????????????????? | | ?????????????????????????????????????????????????? | | ?????????????????????????????????????????????????? | | ?????????????????????????????????????????????????? | | ?????????????????????????????????????????????????? | +----------------------------------------------------+ Best States ------------- Heat Dissipation 25 Energy Generation 10 Energy Capacity 250 Matter Stores 300 Matter Capacity 300 Sight Range 16 Terrain Scan Range 16 Terrain Scan Density 10 Evasion (%) 44 Item Schematics ----------------- None Robot Schematics ------------------ None Fabricated ------------ Nothing Repaired ---------- Nothing Studied --------- None Alien Tech Used ----------------- None Achievements -------------- Do Not Disturb Challenges ------------ None Game ------ Seed SingularityTeslaJoltstriker Manual? 0 Play Time 00:12:52 Cumulative 261.0 hours Start 2026.06.29 @ 17:39:28 End 2026.06.29 @ 17:50:31 Sessions 1 Manual Loads 0 Difficulty Rogue Special Mode None Game No. 404 Rogue 404 Adventurer 0 Explorer 0 Win Type - Total 0 Types 0/0/0/0/0/0/0/0/0/0 Lore% 50 Gallery% 50 Achievement% 31 Wizard Run 0 Options --------- Layout 0 ASCII 0 Keyboard 0 Movement Mouse Keybinds 0 Fullscreen 1 Font 18/SmallcapsGlow Map View 76x50 Zoom Use 0% Tactical HUD 1 Map Filters NONE Filters NONE Steam 1 RUN: 6883b465-a434-40e9-be9d-0712561fc35c